fUSD/lending_fUSD_20250814
["ID","MTS","AMOUNT","RATE_DAILY","PERIOD"]
[379125371,1755151933788,-400.0,0.00055616,120]
[379125372,1755151933798,-2634.74,0.00055616,120]
[379125373,1755151933807,-400.0,0.00055616,120]
[379125374,1755151933817,-400.0,0.00055616,120]
[379125375,1755151933826,-400.0,0.00055616,120]
[379125376,1755151933836,-569.15,0.00055616,120]
[379125377,1755151933846,-526.01,0.00055616,120]
[379125378,1755151933856,-1435.39,0.00055616,120]
[379125379,1755151933866,-400.0,0.00055616,120]
[379125380,1755151933875,-400.0,0.00055616,120]
[379125381,1755151933884,-400.0,0.00055616,120]
[379125382,1755151933896,-400.0,0.00055616,120]
[379125383,1755151933905,-400.0,0.00055616,120]
[379125384,1755151933915,-3145.12,0.00055616,120]
[379125385,1755151933924,-400.0,0.00055616,120]
[379125386,1755151933934,-400.0,0.00055616,120]
[379125387,1755151933946,-400.0,0.00055616,120]
[379125388,1755151933955,-973.72,0.00055616,120]
[379125389,1755151933965,-1535.26,0.00055616,120]
[379125390,1755151933975,-400.0,0.00055616,120]
[379125391,1755151933985,-400.0,0.00055616,120]
[379125392,1755151933994,-528.00649945,0.00055616,120]
[379125393,1755151934004,-502.53,0.00055616,120]
[379125394,1755151934013,-400.0,0.00055616,120]
[379125395,1755151934025,-1237.4,0.00055616,120]
[379125396,1755151934035,-400.0,0.00055616,120]
[379125397,1755151934044,-400.0,0.00055616,120]
[379125398,1755151934054,-400.0,0.00055616,120]
[379125399,1755151934063,-400.0,0.00055616,120]
[379125400,1755151934073,-400.0,0.00055616,120]
[379125401,1755151934082,-400.0,0.00055616,7]
[379125402,1755151934092,-994.56,0.00055616,120]
[379125403,1755151934101,-3930.5,0.00055616,120]
[379125404,1755151934111,-851.4,0.00055616,120]
[379125405,1755151934120,-1688.6,0.00055616,120]
[379125406,1755151934129,-400.0,0.00055616,120]
[379125407,1755151934141,-417.86,0.00055616,120]
[379125408,1755151934150,-400.0,0.00055616,120]
[379125409,1755151934159,-306.36315695,0.00055616,120]
[379125410,1755151934169,-1138.14,0.00055616,120]
[379125411,1755151934179,-400.0,0.00055616,120]
[379125412,1755151934188,-400.0,0.00055616,120]
[379125413,1755151934198,-2306.91,0.00055616,120]
[379125414,1755151934207,-400.0,0.00055616,120]
[379125415,1755151934217,-247.78,0.00055616,120]
[379125416,1755151934226,-1932.47,0.00055616,120]
[379125417,1755151934235,-1449.35,0.00055616,120]
[379125418,1755151934246,-400.0,0.00055616,120]
[379125419,1755151934256,-2898.61,0.00055616,120]
[379125420,1755151934266,-400.0,0.00055616,120]
[379125421,1755151934275,-400.0,0.00055616,120]
[379125422,1755151934285,-597.08,0.00055616,120]
[379125423,1755151934294,-527.59515232,0.00055616,120]
[379125424,1755151934304,-977.15,0.00055616,120]
[379125425,1755151934314,-605.25,0.00055616,120]
[379125426,1755151934327,-645.84,0.00055616,120]
[379125427,1755151934338,-405.37845552,0.00055616,120]
[379125428,1755151934347,-400.0,0.00055616,120]
[379125429,1755151934356,-400.0,0.00055616,120]
[379125430,1755151934366,-640.09,0.00055616,120]
[379125431,1755151934376,-400.0,0.00055616,120]
[379125432,1755151934385,-2143.17,0.00055616,120]
[379125433,1755151934395,-1504.96,0.00055616,30]
[379125434,1755151934404,-400.0,0.00055616,120]
[379125435,1755151934414,-4441.35,0.00055616,60]
[379125436,1755151934424,-400.0,0.00055616,120]
[379125437,1755151934433,-1063.89,0.00055616,120]
[379125438,1755151934442,-434.42,0.00055616,120]
[379125439,1755151934452,-400.0,0.00055616,120]
[379125440,1755151934461,-3704.26,0.00055616,120]
[379125441,1755151934470,-749.81,0.00055616,120]
[379125442,1755151934479,-400.0,0.00055616,120]
[379125443,1755151934489,-400.0,0.00055616,120]
[379125444,1755151934498,-796.46,0.00055616,120]
[379125445,1755151934507,-400.0,0.00055616,120]
[379125446,1755151934516,-680.22,0.00055616,120]
[379125447,1755151934526,-922.0,0.00055616,120]
[379125448,1755151934534,-2057.96,0.00055616,120]
[379125449,1755151934544,-1635.41,0.00055616,120]
[379125450,1755151934554,-400.0,0.00055616,120]
[379125451,1755151934563,-400.0,0.00055616,120]
[379125452,1755151934573,-2448.92,0.00055616,120]
[379125453,1755151934582,-3741.78,0.00055616,120]
[379125454,1755151934592,-400.0,0.00055616,120]
[379125455,1755151934601,-1764.54,0.00055616,120]
[379125456,1755151934610,-400.0,0.00055616,120]
[379125457,1755151934619,-643.99,0.00055616,120]
[379125458,1755151934629,-261.6124179,0.00055616,120]
[379125459,1755151934638,-773.35,0.00055616,120]
[379125460,1755151934647,-400.0,0.00055616,120]
[379125461,1755151934657,-400.0,0.00055616,120]
[379125462,1755151934667,-400.0,0.00055616,120]
[379125463,1755151934675,-400.0,0.00055616,120]
[379125464,1755151934685,-806.63,0.00055616,120]
[379125465,1755151934694,-400.0,0.00055616,120]
[379125466,1755151934703,-400.0,0.00055616,120]
[379125467,1755151934713,-3697.49,0.00055616,120]
[379125468,1755151934722,-400.0,0.00055616,120]
[379125469,1755151934738,-400.0,0.00055616,120]
[379125470,1755151934760,-400.0,0.00055616,120]
[379125471,1755151934775,-400.0,0.00055616,120]
[379125472,1755151934793,-400.0,0.00055616,120]
[379125473,1755151934813,-2202.06,0.00055616,120]
[379125474,1755151934828,-2618.33,0.00055616,120]
[379125475,1755151934852,-400.0,0.00055616,120]
[379125476,1755151934873,-422.63,0.00055616,120]
[379125477,1755151934891,-1232.69,0.00055616,120]
[379125478,1755151934910,-400.0,0.00055616,120]
[379125479,1755151934929,-400.0,0.00055616,120]
[379125480,1755151934951,-956.31,0.00055616,120]
[379125481,1755151934967,-787.12,0.00055616,120]
[379125482,1755151934982,-946.92,0.00055616,120]
[379125483,1755151935001,-400.0,0.00055616,120]
[379125484,1755151935014,-400.0,0.00055616,120]
[379125485,1755151935031,-401.38563291,0.00055616,120]
[379125486,1755151935047,-400.0,0.00055616,120]
[379125487,1755151935062,-2908.77,0.00055616,120]
[379125488,1755151935077,-698.51,0.00055616,120]
[379125489,1755151935093,-1772.64,0.00055616,120]
[379125490,1755151935109,-414.04,0.00055616,120]
[379125491,1755151935124,-479.77596282,0.00055616,120]
[379125492,1755151935139,-3094.08,0.00055616,120]
[379125493,1755151935153,-1082.85,0.00055616,120]
[379125494,1755151935168,-1462.02,0.00055616,120]
[379125495,1755151935183,-1237.68,0.00055616,120]
[379125496,1755151935199,-1768.49,0.00055616,120]
[379125497,1755151935215,-400.0,0.00055616,120]
[379125498,1755151935230,-400.0,0.00055616,120]
[379125499,1755151935244,-400.0,0.00055616,120]
[379125500,1755151935258,-1704.18,0.00055616,120]
[379125501,1755151935274,-400.0,0.00055616,120]
[379125502,1755151935289,-1596.72,0.00055616,120]
[379125503,1755151935304,-970.53,0.00055616,120]
[379125504,1755151935319,-2462.23,0.00055616,120]
[379125505,1755151935333,-1830.0,0.00055616,120]
[379125506,1755151935347,-2324.76,0.00055616,120]
[379125507,1755151935361,-400.0,0.00055616,120]
[379125508,1755151935376,-400.0,0.00055616,120]
[379125509,1755151935390,-400.0,0.00055616,120]
[379125510,1755151935406,-1017.9,0.00055616,120]
[379125511,1755151935420,-1510.97,0.00055616,120]
[379125512,1755151935435,-400.0,0.00055616,120]
[379125513,1755151935449,-2038.31,0.00055616,120]
[379125514,1755151935463,-1143.04,0.00055616,120]
[379125515,1755151935478,-713.52,0.00055616,120]
[379125516,1755151935492,-755.88,0.00055616,120]
[379125517,1755151935506,-400.0,0.00055616,120]
[379125518,1755151935522,-400.0,0.00055616,120]
[379125519,1755151935537,-718.87,0.00055616,120]
[379125520,1755151935553,-556.99,0.00055616,120]
[379125521,1755151935568,-400.0,0.00055616,120]
[379125522,1755151935582,-400.0,0.00055616,120]
[379125523,1755151935596,-2571.66,0.00055616,120]
[379125524,1755151935610,-400.0,0.00055616,120]
[379125525,1755151935624,-400.0,0.00055616,120]
[379125526,1755151935638,-400.0,0.00055616,120]
[379125527,1755151935652,-400.0,0.00055616,120]
[379125528,1755151935667,-1807.99,0.00055616,120]
[379125529,1755151935682,-400.0,0.00055616,120]
[379125530,1755151935697,-400.0,0.00055616,120]
[379125531,1755151935711,-533.67,0.00055616,120]
[379125532,1755151935725,-407.33,0.00055616,120]
[379125533,1755151935740,-400.0,0.00055616,120]
[379125534,1755151935753,-1087.08,0.00055616,120]
[379125535,1755151935767,-347.30649387,0.00055616,120]
[379125536,1755151935781,-2899.38,0.00055616,120]
[379125537,1755151935795,-400.0,0.00055616,120]
[379125538,1755151935809,-400.0,0.00055616,120]
[379125539,1755151935821,-400.0,0.00055616,120]
[379125540,1755151935835,-400.0,0.00055616,120]
[379125541,1755151935848,-401.37302665,0.00055616,120]
[379125542,1755151935862,-924.51,0.00055616,120]
[379125543,1755151935874,-400.0,0.00055616,120]
[379125544,1755151935887,-400.0,0.00055616,120]
[379125545,1755151935900,-3096.61,0.00055616,120]
[379125546,1755151935914,-400.0,0.00055616,120]
[379125547,1755151935928,-1363.2,0.00055616,120]
[379125548,1755151935946,-400.0,0.00055616,120]
[379125549,1755151935960,-400.0,0.00055616,120]
[379125550,1755151935974,-1524.73,0.00055616,120]
[379125551,1755151935989,-400.0,0.00055616,120]
[379125552,1755151936001,-2258.0,0.00055616,120]
[379125553,1755151936015,-400.0,0.00055616,120]
[379125554,1755151936029,-982.03,0.00055616,120]
[379125555,1755151936042,-2813.54,0.00055616,120]
[379125556,1755151936055,-1859.15,0.00055616,120]
[379125557,1755151936068,-4282.75,0.00055616,120]
[379125558,1755151936081,-400.0,0.00055616,120]
[379125559,1755151936095,-633.33,0.00055616,120]
[379125560,1755151936110,-589.25,0.00055616,120]
[379125561,1755151936122,-409.89,0.00055616,120]
[379125562,1755151936136,-400.0,0.00055616,120]
[379125563,1755151936150,-2107.25,0.00055616,120]
[379125564,1755151936162,-1069.77,0.00055616,120]
[379125565,1755151936176,-400.0,0.00055616,120]
[379125566,1755151936189,-400.0,0.00055616,120]
[379125567,1755151936202,-425.94,0.00055616,7]
[379125568,1755151936216,-400.0,0.00055616,120]
[379125569,1755151936230,-726.28,0.00055616,120]
[379125570,1755151936243,-563.93,0.00055616,120]
[379125571,1755151936258,-400.0,0.00055616,120]
[379125572,1755151936271,-400.0,0.00055616,120]
[379125573,1755151936285,-400.0,0.00055616,120]
[379125574,1755151936297,-400.0,0.00055616,120]
[379125575,1755151936312,-1895.43,0.00055616,120]
[379125576,1755151936327,-400.0,0.00055616,120]
[379125577,1755151936340,-400.0,0.00055616,120]
[379125578,1755151936354,-2102.01,0.00055616,120]
[379125579,1755151936368,-400.0,0.00055616,120]
[379125580,1755151936381,-1483.04,0.00055616,120]
[379125581,1755151936396,-2422.29,0.00055616,120]
[379125582,1755151936409,-400.0,0.00055616,2]
[379125583,1755151936422,-400.0,0.00055616,120]
[379125584,1755151936436,-400.0,0.00055616,120]
[379125585,1755151936450,-400.0,0.00055616,120]
[379125586,1755151936463,-400.0,0.00055616,120]
[379125587,1755151936477,-610.6,0.00055616,120]
[379125588,1755151936490,-400.0,0.00055616,120]
[379125589,1755151936504,-433.74,0.00055616,120]
[379125590,1755151936518,-500.0,0.00055616,120]
[379125591,1755151936532,-400.0,0.00055616,120]
[379125592,1755151936546,-400.0,0.00055616,120]
[379125593,1755151936560,-400.0,0.00055616,120]
[379125594,1755151936576,-1120.18,0.00055616,120]
[379125595,1755151936595,-1082.87,0.00055616,120]
[379125596,1755151936609,-714.76,0.00055616,120]
[379125597,1755151936623,-2336.16,0.00055616,120]
[379125598,1755151936639,-2365.39,0.00055616,120]
[379125599,1755151936654,-1881.91,0.00055616,120]
[379125600,1755151936667,-400.0,0.00055616,120]
[379125601,1755151936681,-1986.2,0.00055616,120]
[379125602,1755151936694,-748.74,0.00055616,120]
[379125603,1755151936707,-400.0,0.00055616,120]
[379125604,1755151936721,-1431.81,0.00055616,120]
[379125605,1755151936734,-400.0,0.00055616,120]
[379125606,1755151936748,-491.79,0.00055616,120]
[379125607,1755151936763,-716.54,0.00055616,120]
[379125608,1755151936777,-2604.84,0.00055616,120]
[379125609,1755151936791,-400.0,0.00055616,120]
[379125610,1755151936804,-1150.55,0.00055616,120]
[379125611,1755151936817,-407.25099877,0.00055616,120]
[379125612,1755151936831,-561.48,0.00055616,120]
[379125613,1755151936845,-400.0,0.00055616,120]
[379125614,1755151936858,-400.0,0.00055616,120]
[379125615,1755151936872,-400.0,0.00055616,120]
[379125616,1755151936885,-444.80564538,0.00055616,120]
[379125617,1755151936900,-400.0,0.00055616,120]
[379125618,1755151936914,-2590.07,0.00055616,120]
[379125619,1755151936928,-3380.76,0.00055616,120]
[379125620,1755151936943,-407.76117259,0.00055616,120]
[379125621,1755151936959,-773.51,0.00055616,120]
[379125622,1755151936972,-1105.75,0.00055616,120]
[379125623,1755151936987,-644.06,0.00055616,120]
[379125624,1755151937000,-400.0,0.00055616,120]
[379125625,1755151937015,-400.0,0.00055616,120]
[379125626,1755151937031,-400.0,0.00055616,120]
[379125627,1755151937045,-400.0,0.00055616,120]
[379125628,1755151937060,-921.37,0.00055616,120]
[379125629,1755151937074,-402.63271861,0.00055616,120]
[379125630,1755151937088,-1957.54,0.00055616,120]
[379125631,1755151937102,-400.0,0.00055616,120]
[379125632,1755151937116,-400.0,0.00055616,120]
[379125633,1755151937129,-3308.64,0.00055616,120]
[379125634,1755151937144,-828.75,0.00055616,120]
[379125635,1755151937157,-400.0,0.00055616,120]
[379125636,1755151937171,-1263.09,0.00055616,120]
[379125637,1755151937186,-862.06,0.00055616,120]
[379125638,1755151937200,-400.0,0.00055616,120]
[379125639,1755151937213,-4194.8,0.00055616,120]
[379125640,1755151937227,-675.62,0.00055616,120]
[379125641,1755151937241,-2648.82,0.00055616,120]
[379125642,1755151937255,-400.0,0.00055616,120]
[379125643,1755151937268,-400.0,0.00055616,120]
[379125644,1755151937281,-3141.33,0.00055616,120]
[379125645,1755151937295,-400.0,0.00055616,120]
[379125646,1755151937311,-799.3,0.00055616,120]
[379125647,1755151937325,-915.76,0.00055616,120]
[379125648,1755151937339,-1488.87,0.00055616,120]
[379125649,1755151937353,-4788.64,0.00055616,120]
[379125650,1755151937367,-400.0,0.00055616,120]
[379125651,1755151937381,-446.06,0.00055616,120]
[379125652,1755151937395,-422.44,0.00055616,120]
[379125653,1755151937409,-828.18,0.00055616,120]
[379125654,1755151937424,-558.99,0.00055616,120]
[379125655,1755151937438,-3660.27,0.00055616,120]
[379125656,1755151937451,-400.0,0.00055616,7]
[379125657,1755151937466,-4915.63,0.00055616,120]
[379125658,1755151937480,-402.46716073,0.00055616,12]
[379125659,1755151937493,-400.0,0.00055616,120]
[379125660,1755151937508,-400.0,0.00055616,120]
[379125661,1755151937521,-1671.55,0.00055616,120]
[379125662,1755151937535,-2959.01,0.00055616,120]
[379125663,1755151937548,-400.0,0.00055616,120]
[379125664,1755151937562,-774.13,0.00055616,120]
[379125665,1755151937576,-588.75,0.00055616,120]
[379125666,1755151937591,-3563.05,0.00055616,120]
[379125667,1755151937606,-1411.75,0.00055616,120]
[379125668,1755151937619,-400.0,0.00055616,120]
[379125669,1755151937635,-400.0,0.00055616,120]
[379125670,1755151937650,-3034.35,0.00055616,120]
[379125671,1755151937664,-400.0,0.00055616,120]
[379125672,1755151937678,-400.0,0.00055616,120]
[379125673,1755151937691,-400.0,0.00055616,120]
[379125674,1755151937705,-421.42,0.00055616,120]
[379125675,1755151937720,-400.0,0.00055616,120]
[379125676,1755151937735,-10132.26,0.00055616,120]
[379125677,1755151937748,-400.0,0.00055616,120]
[379125678,1755151937761,-400.0,0.00055616,120]
[379125679,1755151937775,-400.0,0.00055616,120]
[379125680,1755151937788,-3837.31,0.00055616,120]
[379125681,1755151937801,-2355.34,0.00055616,120]
[379125682,1755151937814,-400.0,0.00055616,120]
[379125683,1755151937826,-619.36,0.00055616,120]
[379125684,1755151937840,-400.0,0.00055616,120]
[379125685,1755151937854,-530.45,0.00055616,120]
[379125686,1755151937868,-3741.18,0.00055616,120]
[379125687,1755151937881,-400.0,0.00055616,120]
[379125688,1755151937895,-2416.13,0.00055616,120]
[379125689,1755151937909,-5302.86,0.00055616,120]
[379125690,1755151937924,-400.0,0.00055616,120]
[379125691,1755151937937,-400.0,0.00055616,120]
[379125692,1755151937955,-667.69,0.00055616,120]
[379125693,1755151937968,-1284.05,0.00055616,120]
[379125694,1755151937982,-2632.73,0.00055616,120]
[379125695,1755151937997,-1084.87,0.00055616,120]
[379125696,1755151938011,-405.17,0.00055616,120]
[379125697,1755151938026,-400.0,0.00055616,120]
[379125698,1755151938499,-400.0,0.00055616,120]
[379125699,1755151938520,-400.0,0.00055616,120]
[379125700,1755151938552,-981.71,0.00055616,120]
[379125701,1755151938562,-400.0,0.00055616,120]
[379125702,1755151938572,-400.0,0.00055616,120]
[379125703,1755151938582,-400.0,0.00055616,120]
[379125704,1755151938591,-3441.48,0.00055616,120]
[379125705,1755151938600,-400.0,0.00055616,120]
[379125706,1755151938610,-1554.4,0.00055616,120]
[379125707,1755151938619,-5684.34,0.00055616,120]
[379125708,1755151938628,-400.0,0.00055616,120]
[379125709,1755151938638,-7477.84,0.00055616,120]
[379125710,1755151938648,-400.0,0.00055616,120]
[379125711,1755151938657,-2982.26,0.00055616,120]
[379125712,1755151938667,-11358.44,0.00055616,120]
[379125713,1755151938676,-2000.0,0.00055616,30]
[379125714,1755151938685,-743.9,0.00055616,120]
[379125715,1755151938694,-500.0,0.00055616,120]
[379125716,1755151938704,-596.58,0.00055616,120]
[379125717,1755151938713,-920.25,0.00055616,120]
[379125718,1755151938723,-1016.73,0.00055616,120]
[379125719,1755151938732,-669.84,0.00055616,120]
[379125720,1755151938742,-400.0,0.00055616,120]
[379125721,1755151938751,-400.0,0.00055616,120]
[379125722,1755151938760,-400.0,0.00055616,120]
[379125723,1755151938770,-4187.8,0.00055616,120]
[379125724,1755151938779,-800.39,0.00055616,120]
[379125725,1755151938789,-4953.23,0.00055616,120]
[379125726,1755151938798,-451.56,0.00055616,120]
[379125727,1755151938808,-2280.27,0.00055616,120]
[379125728,1755151938818,-7813.46,0.00055616,120]
[379125729,1755151938827,-3989.57,0.00055616,120]
[379125730,1755151938837,-4004.38,0.00055616,120]
[379125731,1755151938847,-400.0,0.00055616,120]
[379125732,1755151938856,-4559.92,0.00055616,120]
[379125733,1755151938866,-505.94,0.00055616,120]
[379125734,1755151938875,-3221.19,0.00055616,120]
[379125735,1755151938885,-1621.03,0.00055616,120]
[379125736,1755151938895,-400.0,0.00055616,120]
[379125737,1755151938906,-1566.01,0.00055616,120]
[379125738,1755151938915,-400.0,0.00055616,120]
[379125739,1755151938925,-400.0,0.00055616,120]
[379125740,1755151938935,-400.0,0.00055616,120]
[379125741,1755151938947,-5315.13,0.00055616,120]
[379125742,1755151938957,-400.0,0.00055616,120]
[379125743,1755151938966,-400.0,0.00055616,120]
[379125744,1755151938975,-2645.16,0.00055616,120]
[379125745,1755151938986,-4739.44,0.00055616,120]
[379125746,1755151938995,-400.0,0.00055616,120]
[379125747,1755151939004,-872.84,0.00055616,120]
[379125748,1755151939014,-3134.41,0.00055616,120]
[379125749,1755151939024,-453.47,0.00055616,120]
[379125750,1755151939034,-4215.8,0.00055616,120]
[379125751,1755151939043,-2802.71,0.00055616,120]
[379125752,1755151939053,-4982.39,0.00055616,120]
[379125753,1755151939063,-400.0,0.00055616,120]
[379125754,1755151939073,-400.0,0.00055616,120]
[379125755,1755151939082,-2950.03,0.00055616,120]
[379125756,1755151939092,-204.13063681,0.00055616,120]
[379125757,1755151939101,-590.51,0.00055616,120]
[379125758,1755151939110,-6376.52,0.00055616,120]
[379125759,1755151939120,-2059.05,0.00055616,120]
[379125760,1755151939130,-400.0,0.00055616,120]
[379125761,1755151939139,-2515.61,0.00055616,120]
[379125762,1755151939148,-400.0,0.00055616,120]
[379125763,1755151939158,-24409.92,0.00055616,120]
[379125764,1755151939168,-400.0,0.00055616,120]
[379125765,1755151939178,-400.0,0.00055616,120]
[379125766,1755151939187,-400.0,0.00055616,120]
[379125767,1755151939197,-6141.07,0.00055616,120]
[379125768,1755151939207,-3350.54,0.00055616,120]
[379125769,1755151939216,-411.47,0.00055616,120]
[379125770,1755151939226,-400.0,0.00055616,120]
[379125771,1755151939236,-1387.3,0.00055616,120]
[379125772,1755151939245,-1511.8,0.00055616,120]
[379125773,1755151939256,-2495.29,0.00055616,120]
[379125774,1755151939266,-911.65,0.00055616,120]
[379125775,1755151939276,-400.0,0.00055616,120]
[379125776,1755151939286,-1798.23,0.00055616,120]
[379125777,1755151939295,-5853.35,0.00055616,120]
[379125778,1755151939305,-400.0,0.00055616,120]
[379125779,1755151939314,-400.0,0.00055616,120]
[379125780,1755151939324,-471.59,0.00055616,120]
[379125781,1755151939333,-400.0,0.00055616,120]
[379125782,1755151939343,-400.0,0.00055616,120]
[379125783,1755151939352,-588.51,0.00055616,120]
[379125784,1755151939362,-425.3487449,0.00055616,120]
[379125785,1755151939372,-4554.64,0.00055616,120]
[379125786,1755151939382,-400.0,0.00055616,120]
[379125787,1755151939392,-825.93,0.00055616,120]
[379125788,1755151939402,-400.0,0.00055616,120]
[379125789,1755151939411,-15433.92,0.00055616,120]
[379125790,1755151939421,-1081.04,0.00055616,120]
[379125791,1755151939431,-1936.66,0.00055616,120]
[379125792,1755151939440,-2546.25,0.00055616,120]
[379125793,1755151939449,-3500.0,0.00055616,120]
[379125794,1755151939459,-400.0,0.00055616,120]
[379125795,1755151939469,-400.0,0.00055616,120]
[379125796,1755151939480,-2830.56,0.00055616,120]
[379125797,1755151939490,-400.0,0.00055616,120]
[379125798,1755151939500,-400.0,0.00055616,120]
[379125799,1755151939509,-5061.69,0.00055616,120]
[379125800,1755151939519,-5480.14,0.00055616,120]
[379125801,1755151939529,-400.0,0.00055616,120]
[379125802,1755151939539,-400.0,0.00055616,120]
[379125803,1755151939548,-400.0,0.00055616,120]
[379125804,1755151939559,-400.0,0.00055616,120]
[379125805,1755151939568,-2644.18,0.00055616,120]
[379125806,1755151939579,-500.0,0.00055616,120]
[379125807,1755151939590,-400.0,0.00055616,120]
[379125808,1755151939600,-887.45,0.00055616,120]
[379125809,1755151939610,-400.0,0.00055616,120]
[379125810,1755151939620,-400.0,0.00055616,120]
[379125811,1755151939629,-3849.42,0.00055616,120]
[379125812,1755151939639,-400.0,0.00055616,120]
[379125813,1755151939651,-400.0,0.00055616,120]
[379125814,1755151939661,-400.0,0.00055616,120]
[379125815,1755151939670,-400.0,0.00055616,120]
[379125816,1755151939679,-400.0,0.00055616,120]
[379125817,1755151939688,-1171.88,0.00055616,15]
[379125818,1755151939698,-946.02,0.00055616,30]
[379125819,1755151939707,-760.13,0.00055616,120]
[379125820,1755151939716,-641.6,0.00055616,120]
[379125821,1755151939726,-400.0,0.00055616,120]
[379125822,1755151939736,-400.0,0.00055616,120]
[379125823,1755151939746,-3015.83,0.00055616,120]
[379125824,1755151939756,-1408.96,0.00055616,120]
[379125825,1755151939766,-2525.64,0.00055616,120]
[379125826,1755151939775,-400.0,0.00055616,120]
[379125827,1755151939784,-400.0,0.00055616,120]
[379125828,1755151939794,-698.37,0.00055616,120]
[379125829,1755151939804,-1796.88,0.00055616,120]
[379125830,1755151939813,-189.13207965,0.00055616,120]
[379125831,1755151939822,-400.0,0.00055616,120]
[379125832,1755151939831,-6675.24,0.00055616,120]
[379125833,1755151939840,-400.0,0.00055616,120]
[379125834,1755151939850,-818.48,0.00055616,120]
[379125835,1755151939859,-2362.21,0.00055616,120]
[379125836,1755151939869,-2836.21,0.00055616,120]
[379125837,1755151939879,-400.0,0.00055616,120]
[379125838,1755151939888,-400.0,0.00055616,2]
[379125839,1755151939899,-5613.39,0.00055616,120]
[379125840,1755151939908,-400.0,0.00055616,120]
[379125841,1755151939917,-2693.4,0.00055616,120]
[379125842,1755151939928,-1980.06,0.00055616,120]
[379125843,1755151939938,-602.91,0.00055616,120]
[379125844,1755151939951,-450.22,0.00055616,120]
[379125845,1755151939961,-644.83,0.00055616,120]
[379125846,1755151939971,-400.0,0.00055616,120]
[379125847,1755151939980,-400.0,0.00055616,120]
[379125848,1755151939991,-496.5,0.00055616,120]
[379125849,1755151940000,-400.0,0.00055616,120]
[379125850,1755151940009,-726.37,0.00055616,120]
[379125851,1755151940019,-10196.5,0.00055616,120]
[379125852,1755151940030,-2203.33,0.00055616,120]
[379125853,1755151940040,-895.57,0.00055616,120]
[379125854,1755151940050,-400.0,0.00055616,120]
[379125855,1755151940059,-3273.53,0.00055616,120]
[379125856,1755151940069,-400.0,0.00055616,120]
[379125857,1755151940079,-2854.6,0.00055616,120]
[379125858,1755151940088,-4023.71,0.00055616,120]
[379125859,1755151940098,-2219.19,0.00055616,120]
[379125860,1755151940107,-3720.23,0.00055616,120]
[379125861,1755151940117,-400.0,0.00055616,120]
[379125862,1755151940127,-1409.35,0.00055616,120]
[379125863,1755151940137,-1179.74,0.00055616,120]
[379125864,1755151940148,-400.0,0.00055616,120]
[379125865,1755151940158,-7528.34,0.00055616,120]
[379125866,1755151940167,-740.61,0.00055616,120]
[379125867,1755151940176,-400.0,0.00055616,120]
[379125868,1755151940186,-855.78,0.00055616,120]
[379125869,1755151940195,-9039.56,0.00055616,120]
[379125870,1755151940204,-1358.25,0.00055616,120]